bitfinex-derivatives/quotes_BTCF0:USTF0_20250805
["timestamp","ask_amount","ask_price","bid_price","bid_amount"]
[1754367783179,0.3547145,114320.0,114310.0,1.55344844]
[1754367786285,0.3547145,114320.0,114310.0,1.28864844]
[1754367786584,0.3547145,114320.0,114310.0,1.17839524]
[1754367791789,0.3547145,114320.0,114310.0,1.17839524]
[1754367797687,0.3550545,114320.0,114310.0,0.58071524]
[1754367797893,0.83280738,114320.0,114310.0,1.17835524]
[1754367798089,0.3550545,114320.0,114310.0,1.17835524]
[1754367798792,0.83280738,114320.0,114310.0,0.70060236]
[1754367798989,0.83280738,114320.0,114310.0,1.17835524]
[1754367803098,0.3550545,114320.0,114310.0,1.17835524]
[1754367803297,0.3550545,114320.0,114310.0,1.33538081]
[1754367807495,0.3550545,114320.0,114310.0,0.85762793]
[1754367807797,0.3550545,114320.0,114310.0,1.33538081]
[1754367807997,0.83280738,114320.0,114310.0,1.33538081]
[1754367808197,0.83280738,114320.0,114310.0,1.17835524]
[1754367808400,0.3550545,114320.0,114310.0,1.17835524]
[1754367808598,0.83280738,114320.0,114310.0,1.17835524]
[1754367808898,0.83280738,114320.0,114310.0,1.33538081]
[1754367809099,0.3550545,114320.0,114310.0,1.33538081]
[1754367810802,0.83280738,114320.0,114310.0,1.33538081]
[1754367811097,0.83280738,114320.0,114310.0,1.33534081]
[1754367811694,0.83280738,114320.0,114310.0,0.25998793]
[1754367811902,0.83280738,114320.0,114310.0,0.86792339]
[1754367812102,0.83280738,114320.0,114310.0,0.71089782]
[1754367812293,0.83280738,114320.0,114310.0,0.11329782]
[1754367812497,0.83280738,114320.0,114310.0,0.71089782]
[1754367812701,0.83280738,114320.0,114310.0,0.60062236]
[1754367812903,0.83380738,114320.0,114310.0,0.60062236]
[1754367813202,0.83480738,114320.0,114310.0,0.60062236]
[1754367814704,0.83480738,114320.0,114310.0,0.77559206]
[1754367816803,0.83480738,114320.0,114310.0,0.77559226]
[1754367817308,0.83480738,114320.0,114310.0,0.17799226]
[1754367817508,0.83480738,114320.0,114310.0,0.88586772]
[1754367819208,0.83480738,114320.0,114310.0,0.11329782]
[1754367819408,0.83480738,114320.0,114310.0,0.71085782]
[1754367819608,0.83480738,114320.0,114310.0,0.60058236]
[1754367820103,0.83480738,114320.0,114310.0,0.71085782]
[1754367820408,1.33480738,114320.0,114310.0,0.60058236]
[1754367820804,1.33480738,114320.0,114310.0,0.00302236]
[1754367821110,1.33480738,114320.0,114310.0,0.60058236]
[1754367823611,1.33480738,114320.0,114310.0,0.60062236]
[1754367828616,1.33480738,114320.0,114310.0,0.00302236]
[1754367828816,1.33480738,114320.0,114310.0,0.60062236]
[1754367829418,0.8570545,114320.0,114310.0,0.60062236]
[1754367829614,1.33480738,114320.0,114310.0,0.60062236]
[1754367830114,0.8570545,114320.0,114310.0,1.25334504]
[1754367830315,0.8092145,114320.0,114310.0,1.25334504]
[1754367830612,0.8092145,114320.0,114310.0,0.65574504]
[1754367830817,1.33385738,114320.0,114310.0,1.25334504]
[1754367832217,1.33385738,114320.0,114310.0,0.77559216]
[1754367832421,1.33385738,114320.0,114310.0,1.25334504]
[1754367832612,0.8561045,114320.0,114310.0,0.77559216]
[1754367834820,1.28066602,114320.0,114310.0,0.00302236]
[1754367835020,1.28066602,114320.0,114310.0,0.60058236]
[1754367836521,0.8561045,114320.0,114310.0,0.60058236]
[1754367836823,1.28066602,114320.0,114310.0,0.60058236]
[1754367837621,1.28066602,114320.0,114310.0,0.77555206]
[1754367838115,1.28066602,114320.0,114310.0,0.60058236]
[1754367838320,1.28066602,114320.0,114310.0,0.77555206]
[1754367839016,0.8561045,114320.0,114310.0,0.77555206]
[1754367840619,0.8561045,114320.0,114310.0,0.77551206]
[1754367841628,0.8561045,114320.0,114310.0,0.60054236]
[1754367841819,1.28066602,114320.0,114310.0,0.60054236]
[1754367842518,1.28066602,114320.0,114310.0,0.00302236]
[1754367842726,1.28066602,114320.0,114310.0,0.60054236]
[1754367843823,1.28066602,114320.0,114310.0,0.00302236]
[1754367844019,1.28066602,114320.0,114310.0,0.60054236]
[1754367846224,1.28066602,114320.0,114310.0,0.00302236]
[1754367846524,1.28066602,114320.0,114310.0,0.60054236]
[1754367847325,1.28066602,114320.0,114310.0,0.00302236]
[1754367847526,1.28066602,114320.0,114310.0,0.60054236]
[1754367849033,0.8561045,114320.0,114310.0,0.60054236]
[1754367849228,1.28066602,114320.0,114310.0,0.60054236]
[1754367852231,0.8561045,114320.0,114310.0,0.60054236]
[1754367852430,1.28066602,114320.0,114310.0,0.60054236]
[1754367855737,0.8561045,114320.0,114310.0,0.60054236]
[1754367856139,1.28066602,114320.0,114310.0,0.60054236]
[1754367858842,0.8561045,114320.0,114310.0,0.60054236]
[1754367859042,1.28066602,114320.0,114310.0,0.60054236]
[1754367860741,1.33382933,114320.0,114310.0,0.60054236]
[1754367861840,1.33382933,114320.0,114310.0,0.00302236]
[1754367862041,1.33382933,114320.0,114310.0,0.60050236]
[1754367862641,0.8561045,114320.0,114310.0,1.25319689]
[1754367862844,1.33382933,114320.0,114310.0,1.25319689]
[1754367863042,1.33382933,114320.0,114310.0,1.36347235]
[1754367863543,1.33382933,114320.0,114310.0,0.88574752]
[1754367863740,1.33382933,114320.0,114310.0,0.71077782]
[1754367864647,1.28073938,114320.0,114310.0,0.71077782]
[1754367867050,0.8561045,114320.0,114310.0,1.3103826]
[1754367867647,0.8561045,114320.0,114310.0,0.88574772]
[1754367868244,0.8561045,114320.0,114310.0,1.3103826]
[1754367868642,0.8561045,114320.0,114310.0,0.88574772]
[1754367872653,0.7866045,114320.0,114310.0,1.3103826]
[1754367874055,0.7846045,114320.0,114310.0,1.3103826]
[1754367874756,0.8173045,114320.0,114310.0,1.3103826]
[1754367875244,0.8173045,114320.0,114310.0,0.88574772]
[1754367875444,0.8319945,114320.0,114310.0,0.88574772]
[1754367875855,0.8531345,114320.0,114310.0,0.88574772]
[1754367884058,0.8551345,114320.0,114310.0,0.88574772]
[1754367888665,1.33278702,114320.0,114310.0,0.77547226]
[1754367888862,1.33278702,114320.0,114310.0,1.25312478]
[1754367890366,1.33278702,114320.0,114310.0,1.36340024]
[1754367891970,1.33278702,114320.0,114310.0,1.25312478]
[1754367902072,1.33278702,114320.0,114310.0,1.36340024]
[1754367902474,1.33278702,114320.0,114310.0,0.88574772]
[1754367902673,1.33278702,114320.0,114310.0,1.36340024]
[1754367907479,1.33278702,114320.0,114310.0,0.88574772]
[1754367907684,1.33278702,114320.0,114310.0,1.36340024]
[1754367910887,0.8551345,114320.0,114310.0,1.36340024]
[1754367911078,1.33278702,114320.0,114310.0,1.36340024]
[1754367917288,0.8551345,114320.0,114310.0,1.36340024]
[1754367917488,1.33278702,114320.0,114310.0,1.36340024]
[1754367917689,1.33278702,114320.0,114310.0,0.88574772]
[1754367917891,1.33278702,114320.0,114310.0,1.36340024]
[1754367919690,1.33278702,114320.0,114310.0,0.28826772]
[1754367919894,1.33278702,114320.0,114310.0,1.36304024]
[1754367920790,1.33278702,114320.0,114310.0,1.25276478]
[1754367926106,0.8551345,114320.0,114310.0,1.25276478]
[1754367926408,1.33278702,114320.0,114310.0,1.25276478]
[1754367928103,0.8551345,114320.0,114310.0,1.25276478]
[1754367928405,1.33278702,114320.0,114310.0,1.25276478]
[1754367930206,0.8077445,114320.0,114310.0,1.25276478]
[1754367931004,0.8077445,114320.0,114310.0,1.36304024]
[1754367931404,0.8077445,114320.0,114310.0,1.25276478]
[1754367932308,0.7866045,114320.0,114310.0,1.36301849]
[1754367932509,0.08513,114320.0,114310.0,1.36301849]
[1754367932709,0.0616,114320.0,114310.0,1.62781849]
[1754367933306,0.0616,114320.0,114310.0,1.51756478]
[1754367934405,0.08443,114320.0,114310.0,1.52056478]
[1754367934606,0.08543,114320.0,114310.0,1.52056478]
[1754367935211,0.08443,114320.0,114310.0,1.63067298]
[1754367935508,0.08443,114320.0,114310.0,1.63167298]
[1754367936209,0.08443,114320.0,114310.0,1.63167173]
[1754367936910,0.08443,114320.0,114310.0,1.62967173]
[1754367937306,0.08443,114320.0,114310.0,1.62867173]
[1754367940111,0.08443,114320.0,114310.0,1.51856478]
[1754367943511,0.0616,114320.0,114310.0,1.51856478]
[1754367945015,0.08443,114320.0,114310.0,1.51856478]
[1754367950025,0.0616,114320.0,114310.0,1.51856478]
[1754367951411,0.0616,114320.0,114310.0,1.9962173]
[1754367951618,0.0616,114320.0,114310.0,1.51856478]
[1754367952822,0.0616,114320.0,114310.0,2.72840478]
[1754367953024,0.0616,114320.0,114310.0,2.88543035]
[1754367953818,0.0616,114320.0,114310.0,2.83841635]
[1754367954515,0.0616,114320.0,114310.0,3.31606887]
[1754367954723,0.0616,114320.0,114310.0,3.2060573]
[1754367957331,0.0616,114320.0,114310.0,3.36324286]
[1754367957828,0.08443,114320.0,114310.0,3.36324286]
[1754367959326,0.02283,114320.0,114310.0,3.36324286]
[1754367959528,0.02283,114320.0,114310.0,3.36524286]
[1754367960528,0.02283,114320.0,114310.0,3.36624286]
[1754367960730,0.02283,114320.0,114310.0,2.88859034]
[1754367960926,0.02283,114320.0,114310.0,3.36624286]
[1754367961130,0.27233,114330.0,114310.0,3.05769326]
[1754367961331,0.2495,114330.0,114320.0,1.08912774]
[1754367961523,0.27396,114330.0,114320.0,1.20227494]
[1754367962029,0.27396,114330.0,114320.0,1.3594605]
[1754367962230,0.27396,114330.0,114320.0,1.24933566]
[1754367963625,0.27396,114330.0,114320.0,1.0921501]
[1754367963932,0.27396,114330.0,114320.0,1.29684295]
[1754367964325,0.27396,114330.0,114320.0,1.29884295]
[1754367965029,0.27396,114330.0,114320.0,1.0951501]
[1754367965232,0.2495,114330.0,114320.0,1.0951501]
[1754367965435,0.2495,114330.0,114320.0,1.25240894]
[1754367965629,0.2428365,114330.0,114320.0,1.25240894]
[1754367965933,0.0639949,114330.0,114320.0,1.29354094]
[1754367966127,0.04724,114360.0,114330.0,0.0437348]
[1754367966332,0.12006,114350.0,114340.0,0.902757]
[1754367966522,0.12006,114350.0,114340.0,0.90577936]
[1754367966826,0.12006,114350.0,114340.0,1.38343188]
[1754367967632,0.12006,114350.0,114340.0,1.38643188]
[1754367968233,0.12006,114350.0,114340.0,1.38543188]
[1754367969036,0.12006,114350.0,114340.0,1.38343188]
[1754367969230,0.12106,114350.0,114340.0,1.38343188]
[1754367969724,0.12106,114350.0,114340.0,1.64823188]
[1754367969925,0.12106,114350.0,114340.0,1.75822652]
[1754367970233,0.12106,114350.0,114340.0,1.76689678]
[1754367971250,0.2959687,114350.0,114340.0,1.76689678]
[1754367972440,0.77362122,114350.0,114340.0,1.15797126]
[1754367972639,0.77362122,114350.0,114340.0,1.63562378]
[1754367972942,0.77362122,114350.0,114340.0,1.52562914]
[1754367974341,0.77362122,114350.0,114340.0,1.63562378]
[1754367974741,0.2959687,114350.0,114340.0,1.15797126]
[1754367978040,0.2959687,114350.0,114340.0,1.04797662]
[1754367978541,0.2959687,114350.0,114340.0,1.15797126]
[1754367980648,0.5089687,114350.0,114340.0,1.04797662]
[1754367981445,0.5089687,114350.0,114340.0,0.78317662]
[1754367983045,0.93329928,114350.0,114340.0,0.60817262]
[1754367983248,0.5089687,114350.0,114340.0,0.71824208]
[1754367983448,0.93329928,114350.0,114340.0,0.71824208]
[1754367983746,0.5089687,114350.0,114340.0,0.60817262]
[1754367984349,0.5089687,114350.0,114340.0,0.01169262]
[1754367984550,0.5089687,114350.0,114340.0,0.60817262]
[1754367986852,0.93329928,114350.0,114340.0,0.01169262]
[1754367987048,0.93329928,114350.0,114340.0,0.60817262]
[1754367988351,0.93329928,114350.0,114340.0,0.71824208]
[1754367994056,0.93329928,114350.0,114340.0,0.89316828]
[1754367995458,0.93329928,114350.0,114340.0,0.71824208]
[1754367996657,0.98640239,114350.0,114340.0,0.71824208]
[1754367999453,0.5089687,114350.0,114340.0,0.89316828]
[1754367999758,0.98640239,114350.0,114340.0,1.37060197]
[1754368000458,0.98640239,114350.0,114340.0,0.89316818]
[1754368000658,0.98640239,114350.0,114340.0,1.37060187]
[1754368001355,0.4606087,114350.0,114340.0,1.37060187]
[1754368001656,0.4133687,114350.0,114340.0,1.26053241]
[1754368003360,0.4384387,114350.0,114340.0,1.26053241]
[1754368003660,0.4869387,114350.0,114340.0,1.26053241]
[1754368004662,0.4869387,114350.0,114340.0,1.20737518]
[1754368006859,0.4733787,114350.0,114340.0,1.20737518]
[1754368007059,0.4133687,114350.0,114340.0,1.20737518]
[1754368007263,0.4133687,114350.0,114340.0,1.31756167]
[1754368007657,0.4133687,114350.0,114340.0,1.20737518]
[1754368011368,0.4133687,114350.0,114340.0,1.31753681]
[1754368013172,0.4869387,114350.0,114340.0,1.31753681]
[1754368013467,0.4138487,114350.0,114340.0,1.31753681]
[1754368013768,0.4138487,114350.0,114340.0,1.20737518]
[1754368015272,0.23894,114350.0,114340.0,1.20737518]
[1754368015773,0.214,114350.0,114340.0,1.20737518]
[1754368016773,0.23894,114350.0,114340.0,1.20737518]
[1754368018288,0.23794,114350.0,114340.0,1.20937518]
[1754368022381,0.213,114350.0,114340.0,1.20937518]
[1754368022880,0.213,114350.0,114340.0,1.47417518]
[1754368023081,0.23588,114350.0,114340.0,1.47417518]
[1754368025284,0.410791,114350.0,114340.0,1.47417518]
[1754368026684,0.410791,114350.0,114340.0,1.52712894]
[1754368027583,0.410791,114350.0,114340.0,2.73672894]
[1754368031188,0.507501,114350.0,114340.0,2.73672894]
[1754368034892,0.507501,114350.0,114340.0,2.89398778]
[1754368035593,0.507501,114350.0,114340.0,2.73672894]
[1754368037492,0.507501,114350.0,114340.0,2.89398778]
[1754368038093,0.507501,114350.0,114340.0,2.73672894]
[1754368039092,0.507501,114350.0,114340.0,2.89398778]
[1754368039691,0.507501,114350.0,114340.0,2.73672894]
[1754368040492,0.507501,114350.0,114340.0,2.89398778]
[1754368040990,0.459481,114350.0,114340.0,2.29750778]
[1754368041197,0.507501,114350.0,114340.0,2.89370778]
[1754368041494,0.507501,114350.0,114340.0,2.73644894]
[1754368043694,0.507501,114350.0,114340.0,2.89370778]
[1754368045297,0.507501,114350.0,114340.0,2.73644894]
[1754368049803,0.507501,114350.0,114340.0,2.25921872]
[1754368049999,0.507501,114350.0,114340.0,2.73644894]
[1754368051900,0.507501,114350.0,114340.0,2.25921872]
[1754368052101,0.507501,114350.0,114340.0,2.73644894]
[1754368056204,0.507501,114350.0,114340.0,1.52684894]
[1754368056700,0.507501,114350.0,114340.0,0.93064844]
[1754368056907,0.507501,114350.0,114340.0,1.52672844]
[1754368057106,0.507501,114350.0,114340.0,0.93064844]
[1754368057307,0.98473122,114350.0,114340.0,1.52672844]
[1754368057600,0.98473122,114350.0,114340.0,0.93064844]
[1754368057802,0.507501,114350.0,114340.0,1.52672844]
[1754368070312,0.507501,114350.0,114340.0,1.63695355]
[1754368071513,0.493541,114350.0,114340.0,1.63695355]
[1754368072015,0.507611,114350.0,114340.0,1.63695355]
[1754368073520,0.98484122,114350.0,114340.0,0.38871773]
[1754368073716,0.98484122,114350.0,114340.0,0.87453262]
[1754368073917,0.98484122,114350.0,114340.0,0.27849262]
[1754368074118,0.98484122,114350.0,114340.0,0.87453262]
[1754368074920,0.507611,114350.0,114340.0,0.87453262]
[1754368075221,0.98484122,114350.0,114340.0,0.87453262]
[1754368076122,0.98484122,114350.0,114340.0,0.71995035]
[1754368077618,0.98484122,114350.0,114340.0,0.71991035]
[1754368078525,0.98484122,114350.0,114340.0,0.60969262]
[1754368078925,0.98484122,114350.0,114340.0,0.71985459]
[1754368080523,0.98484122,114350.0,114340.0,0.12385459]
[1754368080723,0.98484122,114350.0,114340.0,0.71985459]
[1754368081829,0.98484122,114350.0,114340.0,0.12385459]
[1754368082023,0.98484122,114350.0,114340.0,0.71989459]
[1754368083926,0.507611,114350.0,114340.0,0.71989459]
[1754368084135,0.98484122,114350.0,114340.0,0.71989459]
[1754368086929,0.98484122,114350.0,114340.0,0.71889459]
[1754368087134,0.98584122,114350.0,114340.0,0.71889459]
[1754368087637,0.98684122,114350.0,114340.0,0.71789459]
[1754368090239,0.509611,114350.0,114340.0,0.71789459]
[1754368090440,0.98684122,114350.0,114340.0,0.71789459]
[1754368091039,0.98684122,114350.0,114340.0,0.60773262]
[1754368091434,0.98684122,114350.0,114340.0,0.71789459]
[1754368095537,0.509611,114350.0,114340.0,0.71789459]
[1754368095737,0.98684122,114350.0,114340.0,0.71789459]
[1754368102851,0.488191,114350.0,114340.0,1.37005091]
[1754368103052,0.98860122,114350.0,114340.0,1.37005091]
[1754368103849,0.511371,114350.0,114340.0,1.37005091]
[1754368104147,0.98860122,114350.0,114340.0,1.36997091]
[1754368104346,0.98860122,114350.0,114340.0,1.25980894]
[1754368105350,0.98860122,114350.0,114340.0,1.37004498]
[1754368106151,0.98860122,114350.0,114340.0,1.19511888]
[1754368106553,0.511371,114350.0,114340.0,1.19511888]
[1754368106753,0.98860122,114350.0,114340.0,1.19511888]
[1754368109150,0.98860122,114350.0,114340.0,0.71788866]
[1754368109356,0.98860122,114350.0,114340.0,1.19511888]
[1754368109949,0.98860122,114350.0,114340.0,0.71788866]
[1754368110256,0.98860122,114350.0,114340.0,0.60765262]
[1754368111150,0.98860122,114350.0,114340.0,0.59898236]
[1754368111355,1.46351322,114350.0,114340.0,0.59898236]
[1754368111744,1.96351322,114350.0,114340.0,0.59898236]
[1754368111955,1.66351322,114350.0,114340.0,0.59898236]
[1754368114771,1.48860122,114350.0,114340.0,0.59898236]
[1754368135776,1.011371,114350.0,114340.0,0.59898236]
[1754368135975,1.48860122,114350.0,114340.0,0.59898236]
[1754368146194,1.48860122,114350.0,114340.0,0.00302236]
[1754368146386,1.48860122,114350.0,114340.0,0.59898236]
[1754368154695,1.48860122,114350.0,114340.0,0.00302236]
[1754368165200,1.011371,114350.0,114340.0,0.00302236]
[1754368165402,1.48860122,114350.0,114340.0,0.00302236]
[1754368167097,0.1749261,114340.0,114330.0,0.11023604]
[1754368167297,0.1749414,114330.0,114320.0,0.11883396]
[1754368167497,1.24915184,114330.0,114320.0,0.11023604]
[1754368167698,1.24915184,114330.0,114320.0,0.70615604]
[1754368168298,1.24915184,114330.0,114320.0,0.59592]
[1754368168498,1.24915184,114330.0,114320.0,0.59692]
[1754368169403,1.24915184,114330.0,114320.0,0.59792]
[1754368170005,1.49865184,114330.0,114320.0,0.59792]
[1754368171699,1.49865184,114330.0,114320.0,0.70815604]
[1754368173113,1.02142162,114330.0,114320.0,0.70815604]
[1754368174609,1.02142162,114330.0,114320.0,0.59792]
[1754368175004,1.49865184,114330.0,114320.0,0.59792]
[1754368175206,1.02142162,114330.0,114320.0,0.59792]
[1754368175805,1.49865184,114330.0,114320.0,0.59792]
[1754368176001,1.02142162,114330.0,114320.0,0.59792]
[1754368176612,1.02142162,114330.0,114320.0,0.11223604]
[1754368176909,1.49865184,114330.0,114320.0,0.70815604]
[1754368179911,1.49865184,114330.0,114320.0,0.11223604]
[1754368180606,1.49865184,114330.0,114320.0,0.70815604]
[1754368181609,1.49865184,114330.0,114320.0,0.59792]
[1754368181813,1.49865184,114330.0,114320.0,0.002]
[1754368182006,1.49865184,114330.0,114320.0,0.59792]
[1754368183215,1.49865184,114330.0,114320.0,0.002]
[1754368183413,1.49865184,114330.0,114320.0,0.59792]
[1754368184417,1.49865184,114330.0,114320.0,0.70815604]
[1754368195308,1.49865184,114330.0,114320.0,0.70715604]
[1754368196720,1.49865184,114330.0,114320.0,0.70615604]
[1754368200933,1.02142162,114330.0,114320.0,0.70615604]
[1754368207435,1.49865184,114330.0,114320.0,0.70615604]
[1754368216238,1.49865184,114330.0,114320.0,0.11023604]
[1754368216738,1.49865184,114330.0,114320.0,0.70607604]
[1754368217040,1.49865184,114330.0,114320.0,0.59584]
[1754368217242,0.2219919,114310.0,114300.0,0.11023604]
[1754368217443,0.77065212,114310.0,114300.0,0.70607604]
[1754368217644,0.77065212,114310.0,114300.0,0.59584]
[1754368219743,0.77065212,114310.0,114300.0,0.59784]
[1754368220041,1.02015212,114310.0,114300.0,0.59784]
[1754368220436,1.02015212,114310.0,114300.0,0.60084]
[1754368221336,1.02015212,114310.0,114300.0,0.71107604]
[1754368222433,1.02015212,114310.0,114300.0,0.11523604]
[1754368222636,1.49738234,114310.0,114300.0,0.71111604]
[1754368222937,2.09326234,114310.0,114300.0,0.005]
[1754368223241,2.59326234,114310.0,114300.0,0.005]
[1754368245354,0.2957573,114300.0,114290.0,0.06994231]
[1754368245545,0.1750026,114290.0,114280.0,0.71497144]
[1754368245857,0.77300282,114290.0,114280.0,0.71497144]
[1754368246056,0.77300282,114290.0,114280.0,0.7835841]
[1754368248160,0.77300282,114290.0,114280.0,0.7865841]
[1754368248356,0.77300282,114290.0,114280.0,0.7885841]
[1754368250663,0.77300282,114290.0,114280.0,0.67834806]
[1754368251163,0.77300282,114290.0,114280.0,0.85336596]
[1754368251363,0.77300282,114290.0,114280.0,0.67834806]
[1754368257962,0.77300282,114290.0,114280.0,0.67734806]
[1754368258157,0.77300282,114290.0,114280.0,0.66849266]
[1754368258158,0.2957726,114290.0,114280.0,0.66849266]
[1754368258364,0.77300282,114290.0,114280.0,0.7787287]
[1754368258659,1.27300282,114290.0,114280.0,0.66849266]
[1754368258854,1.27300282,114290.0,114280.0,0.66549266]
[1754368259558,1.27300282,114290.0,114280.0,0.66449266]
[1754368260257,1.27300282,114290.0,114280.0,0.7747287]
[1754368260454,1.27300282,114290.0,114280.0,0.78344563]
[1754368261964,0.7957726,114290.0,114280.0,0.78344563]
[1754368262273,1.27300282,114290.0,114280.0,0.78344563]
[1754368264170,1.27300282,114290.0,114280.0,0.7747287]
[1754368265272,1.27300282,114290.0,114280.0,0.78372114]
[1754368265462,0.7957726,114290.0,114280.0,0.66507136]
[1754368265664,1.27300282,114290.0,114280.0,0.78372114]
[1754368266564,1.27300282,114290.0,114280.0,0.78368114]
[1754368270467,1.19267282,114290.0,114280.0,0.78368114]
[1754368270669,1.19267282,114290.0,114280.0,1.43592926]
[1754368270670,1.21074282,114290.0,114280.0,1.43592926]
[1754368270868,1.17707282,114290.0,114280.0,1.26091136]
[1754368271068,1.22571282,114290.0,114280.0,1.26091136]
[1754368272073,1.22571282,114290.0,114280.0,0.78368114]
[1754368275175,1.27349282,114290.0,114280.0,0.78368114]
[1754368279580,1.27349282,114290.0,114280.0,0.6734451]
[1754368282279,1.27349282,114290.0,114280.0,0.6734051]
[1754368284883,1.27349282,114290.0,114280.0,0.78364114]
[1754368290579,1.27349282,114290.0,114280.0,0.1788487]
[1754368290780,1.27349282,114290.0,114280.0,0.7746087]
[1754368290984,1.27349282,114290.0,114280.0,0.66437266]
[1754368292188,1.2820586,114290.0,114280.0,0.66437266]
[1754368294788,1.27349282,114290.0,114280.0,0.66437266]
[1754368296691,1.28209018,114290.0,114280.0,0.66437266]
[1754368297292,0.80485996,114290.0,114280.0,0.66437266]
[1754368297590,1.28209018,114290.0,114280.0,0.66437266]
[1754368301294,1.27349282,114290.0,114280.0,0.66437266]
[1754368306913,1.27349282,114290.0,114280.0,0.06861266]
[1754368307103,1.27349282,114290.0,114280.0,0.59572]
[1754368307910,1.27349282,114290.0,114280.0,0.66688144]
[1754368313010,0.7962626,114290.0,114280.0,0.66688144]
[1754368313211,1.27349282,114290.0,114280.0,0.66688144]
[1754368313614,0.7962626,114290.0,114280.0,0.66688144]
[1754368313911,1.27349282,114290.0,114280.0,0.66688144]
[1754368315312,1.27349282,114290.0,114280.0,0.66772144]
[1754368315514,0.1750178,114280.0,114270.0,0.13211154]
[1754368315706,0.77105802,114280.0,114270.0,0.72875154]
[1754368316713,0.77105802,114280.0,114270.0,0.6185155]
[1754368317011,0.77105802,114280.0,114270.0,0.0218755]
[1754368317216,0.77105802,114280.0,114270.0,0.68968299]
[1754368317516,0.77105802,114280.0,114270.0,0.79991903]
[1754368317720,0.77105802,114280.0,114270.0,0.80091903]
[1754368318018,1.24828824,114280.0,114270.0,0.19548338]
[1754368318322,0.77105802,114280.0,114270.0,0.79204338]
[1754368318821,0.77105802,114280.0,114270.0,0.19548338]
[1754368319020,1.27105802,114280.0,114270.0,0.79208338]
[1754368319315,1.27105802,114280.0,114270.0,0.79108338]
[1754368319519,1.27105802,114280.0,114270.0,0.7989324]
[1754368320213,1.27105802,114280.0,114270.0,0.68869636]
[1754368320409,1.27105802,114280.0,114270.0,0.68865636]
[1754368321316,1.27105802,114280.0,114270.0,0.09209636]
[1754368321617,1.27105802,114280.0,114270.0,0.67976734]
[1754368321818,0.7938278,114280.0,114270.0,0.67976734]
[1754368322017,1.27105802,114280.0,114270.0,0.67976734]
[1754368323005,1.27105802,114280.0,114270.0,1.16577041]
[1754368323208,0.7457278,114280.0,114270.0,1.34080361]
[1754368323419,0.7457278,114280.0,114270.0,0.68854019]
[1754368323623,1.22295802,114280.0,114270.0,1.27600645]
[1754368323821,0.7922878,114280.0,114270.0,1.27600645]
[1754368324123,1.26951802,114280.0,114270.0,1.27600645]
[1754368324613,1.26951802,114280.0,114270.0,0.79877623]
[1754368324819,1.26951802,114280.0,114270.0,1.27600645]
[1754368325314,1.26951802,114280.0,114270.0,0.79877623]
[1754368325716,1.26951802,114280.0,114270.0,1.27600645]
[1754368326218,1.26951802,114280.0,114270.0,0.79877623]
[1754368327714,1.26951802,114280.0,114270.0,1.27600645]
[1754368328614,1.26951802,114280.0,114270.0,0.79877623]
[1754368328816,0.7922878,114280.0,114270.0,0.79877623]
[1754368329206,1.26951802,114280.0,114270.0,0.79877623]
[1754368329618,0.7922878,114280.0,114270.0,1.27600645]
[1754368329915,0.6992378,114280.0,114270.0,0.97380953]
[1754368330116,1.17646802,114280.0,114270.0,1.27600645]
[1754368330517,1.22302802,114280.0,114270.0,1.45103965]
[1754368331417,1.22302802,114280.0,114270.0,1.27600645]
[1754368331618,1.22302802,114280.0,114270.0,1.45103965]
[1754368331818,0.7941578,114280.0,114270.0,1.45103965]
[1754368332019,1.27138802,114280.0,114270.0,1.45103965]
[1754368333522,1.27138802,114280.0,114270.0,0.97380943]
[1754368333819,1.27138802,114280.0,114270.0,1.45103965]
[1754368334219,1.27138802,114280.0,114270.0,0.79877623]
[1754368334420,1.27138802,114280.0,114270.0,1.16577041]
[1754368336421,1.27138802,114280.0,114270.0,1.27600645]
[1754368337118,0.7941578,114280.0,114270.0,1.27600645]
[1754368337319,1.27138802,114280.0,114270.0,1.27600645]
[1754368339225,1.27138802,114280.0,114270.0,1.45103965]
[1754368340020,1.27138802,114280.0,114270.0,1.34080361]
[1754368340221,1.27138802,114280.0,114270.0,1.45107613]
[1754368341028,0.7941578,114280.0,114270.0,1.45107613]
[1754368341224,1.27138802,114280.0,114270.0,1.45107613]
[1754368341821,0.7941578,114280.0,114270.0,1.45107613]
[1754368342025,1.27138802,114280.0,114270.0,1.45107613]
[1754368342226,1.27138802,114280.0,114270.0,0.85455613]
[1754368342525,1.27138802,114280.0,114270.0,1.34280361]
[1754368342720,0.7941578,114280.0,114270.0,1.34280361]
[1754368343127,0.6992378,114280.0,114270.0,1.34280361]
[1754368343327,1.17646802,114280.0,114270.0,1.34280361]
[1754368343528,1.22302802,114280.0,114270.0,1.34280361]
[1754368343723,1.22302802,114280.0,114270.0,0.86557339]
[1754368343926,1.22302802,114280.0,114270.0,1.34280361]
[1754368345027,1.22302802,114280.0,114270.0,0.09202019]
[1754368345226,1.22302802,114280.0,114270.0,1.16809041]
[1754368345830,1.22302802,114280.0,114270.0,1.34312361]
[1754368347031,0.7941578,114280.0,114270.0,1.34312361]
[1754368347223,1.27138802,114280.0,114270.0,1.34312361]
[1754368347422,1.27138802,114280.0,114270.0,0.09202019]
[1754368347618,1.27138802,114280.0,114270.0,0.69058019]
[1754368347825,1.27138802,114280.0,114270.0,1.16781041]
[1754368348025,1.27138802,114280.0,114270.0,0.69058019]
[1754368348227,1.27138802,114280.0,114270.0,1.16781041]
[1754368349132,1.27138802,114280.0,114270.0,0.69058019]
[1754368350239,1.27138802,114280.0,114270.0,0.09202019]
[1754368350540,1.27138802,114280.0,114270.0,0.69090019]
[1754368355350,1.27138802,114280.0,114270.0,0.69086019]
[1754368355649,1.27138802,114280.0,114270.0,0.69082019]
[1754368356651,0.7941578,114280.0,114270.0,0.69082019]
[1754368356847,1.27138802,114280.0,114270.0,0.69082019]
[1754368357052,1.27138802,114280.0,114270.0,0.80109271]
[1754368357853,1.27138802,114280.0,114270.0,0.20229271]
[1754368358149,1.27138802,114280.0,114270.0,0.80109271]
[1754368360851,1.27138802,114280.0,114270.0,1.27832293]
[1754368363658,0.7941578,114280.0,114270.0,1.27832293]
[1754368363860,1.27138802,114280.0,114270.0,1.27832293]
[1754368364156,1.27138802,114280.0,114270.0,0.80109271]
[1754368364353,1.27138802,114280.0,114270.0,1.27832293]
[1754368365058,1.27138802,114280.0,114270.0,0.80109271]
[1754368366459,0.2908485,114260.0,114250.0,0.81016884]
[1754368366651,0.76807872,114260.0,114250.0,0.85050884]
[1754368366847,0.76807872,114260.0,114250.0,0.69325]
[1754368367052,0.76807872,114260.0,114250.0,0.66852]
[1754368367449,0.76807872,114260.0,114250.0,0.64579476]
[1754368367759,0.76807872,114260.0,114250.0,0.59464726]
[1754368368060,1.01757872,114260.0,114250.0,0.59464726]
[1754368368257,1.01757872,114260.0,114250.0,0.67794251]
[1754368368463,1.01757872,114260.0,114250.0,0.07906251]
[1754368368464,1.0403485,114260.0,114250.0,0.07906251]
[1754368368761,1.51757872,114260.0,114250.0,0.67790251]
[1754368369163,1.51757872,114260.0,114250.0,0.66933046]